bitfinex-derivatives/quotes_ETHF0:USTF0_20260307
["timestamp","ask_amount","ask_price","bid_price","bid_amount"]
[1772844560937,0.52472352,1981.5,1980.8,0.592031]
[1772844569540,0.52472352,1981.5,1980.8,41.392031]
[1772844569746,0.52472352,1981.5,1980.9,0.592031]
[1772844582249,6.06781152,1981.4,1980.9,0.592031]
[1772844582452,0.53720394,1981.4,1980.9,0.592031]
[1772844584555,1.9439951,1981.6,1980.9,0.592031]
[1772844584758,12.89124442,1981.7,1980.9,0.592031]
[1772844584759,7.08827859,1981.5,1980.9,0.592031]
[1772844584956,0.53679629,1981.5,1980.9,0.592031]
[1772844585157,0.00537485,1981.7,1980.9,0.592031]
[1772844585357,6.55097675,1981.6,1980.9,0.592031]
[1772844585557,0.54217114,1981.7,1980.9,0.592031]
[1772844585758,0.00537485,1981.7,1981.3,0.54736502]
[1772844586166,0.53433715,1981.5,1981.0,0.54736502]
[1772844588165,0.53447568,1981.6,1981.0,0.54736502]
[1772844590665,0.00537485,1981.7,1981.0,0.54736502]
[1772844591265,0.54000709,1981.7,1981.0,0.54736502]
[1772844598476,0.00537485,1981.7,1981.0,0.54736502]
[1772844600476,8.95049105,1982.0,1981.1,0.56496581]
[1772844601579,0.5378659,1981.9,1981.1,0.56496581]
[1772844608182,0.54419812,1982.0,1981.1,0.56496581]
[1772844608378,0.54419812,1982.0,1981.2,0.55119873]
[1772844609383,0.0048703,1982.0,1981.2,0.55119873]
[1772844617693,8.95834504,1982.3,1981.4,0.55119873]
[1772844618789,8.96334304,1982.3,1981.4,0.55119873]
[1772844619588,0.54634304,1982.3,1981.4,0.55119873]
[1772844621092,0.54634304,1982.3,1981.1,1.94550841]
[1772844621093,0.54634304,1982.3,1981.6,0.55119873]
[1772844631700,0.004998,1982.3,1981.6,0.55119873]
[1772844637706,0.004998,1982.3,1981.8,0.59695368]
[1772844643109,0.004998,1982.3,1981.9,40.8]
[1772844643308,0.004998,1982.3,1982.0,0.59695368]
[1772844643606,0.00016365,1982.3,1982.0,0.60153936]
[1772844652913,30.02869714,1982.7,1982.0,0.60153936]
[1772844653213,30.55923882,1982.7,1982.0,0.60153936]
[1772844653915,30.56308484,1982.7,1982.0,0.60153936]
[1772844654115,10.87591938,1982.7,1982.0,0.60153936]
[1772844654415,0.53049209,1982.6,1982.2,0.59695368]
[1772844656918,8.93148636,1982.7,1982.2,0.59695368]
[1772844657123,8.40184602,1982.7,1982.2,0.59695368]
[1772844657312,0.53348636,1982.7,1982.2,0.59695368]
[1772844669735,0.53348636,1982.7,1982.3,0.57634551]
[1772844673033,0.53723002,1982.9,1982.3,0.57634551]
[1772844673229,0.53723002,1982.7,1982.3,0.57634551]
[1772844673435,0.53723002,1982.9,1982.3,0.57634551]
[1772844674136,0.54194372,1982.9,1982.3,0.57634551]
[1772844674632,0.54194372,1982.9,1982.4,0.57634551]
[1772844674633,0.54831695,1982.9,1982.4,0.57634551]
[1772844675439,0.0047137,1982.9,1982.4,0.57634551]
[1772844679946,0.54584861,1983.1,1982.4,0.57634551]
[1772844681046,0.54968399,1983.1,1982.4,0.57634551]
[1772844696658,0.00383538,1983.1,1982.4,0.57634551]
[1772844697153,0.00383538,1983.1,1982.6,0.54480425]
[1772844700059,20.24511404,1983.3,1982.6,0.54480425]
[1772844700952,20.25143191,1983.3,1982.6,0.54480425]
[1772844701162,0.53557756,1983.2,1982.6,0.54480425]
[1772844705160,19.71585435,1983.3,1982.6,0.54480425]
[1772844705459,20.25139026,1983.3,1982.6,0.54480425]
[1772844709066,0.5325759,1983.2,1982.6,0.54480425]
[1772844718676,0.53318772,1983.1,1982.4,0.59747359]
[1772844721873,0.53318772,1983.1,1982.3,0.59834136]
[1772844723168,0.53318772,1983.1,1982.2,40.8]
[1772844723370,1.94200188,1982.9,1982.2,40.8]
[1772844723568,0.54856687,1982.7,1982.2,40.8]
[1772844723766,0.54856687,1982.7,1982.0,0.00458568]
[1772844724172,0.54856687,1982.7,1982.0,40.80458568]
[1772844724875,0.54856687,1982.7,1982.0,0.00458568]
[1772844736484,0.54856687,1982.7,1982.0,0.60292704]
[1772844741985,0.54856687,1982.7,1982.0,0.00458568]
[1772844744889,0.54856687,1982.7,1982.0,0.60292704]
[1772844776530,0.54486482,1982.6,1982.0,0.60292704]
[1772844789736,1.94391643,1982.9,1982.0,0.60292704]
[1772844790033,2.88685672,1983.2,1982.3,0.60043492]
[1772844790234,3.44946783,1983.2,1982.3,0.60043492]
[1772844790431,0.56261111,1983.1,1982.3,0.60043492]
[1772844808842,0.56261111,1983.1,1982.1,0.60043492]
[1772844808843,0.56468082,1982.5,1982.1,0.60043492]
[1772844821165,2.51329592,1982.6,1982.1,0.60043492]
[1772844821361,8.876,1982.8,1982.1,0.60043492]
[1772844821561,0.56937949,1982.9,1982.1,0.60043492]
[1772844825265,2.50971153,1983.0,1982.1,0.60043492]
[1772844825862,0.5657951,1983.0,1982.1,0.60043492]
[1772844826066,0.5657951,1983.0,1982.3,0.57846084]
[1772844834468,0.5657951,1983.0,1982.5,0.57846084]
[1772844834673,10.422167,1983.2,1982.5,0.57846084]
[1772844835174,0.56522671,1983.1,1982.5,0.57846084]
[1772844835667,0.57143184,1983.3,1982.7,0.57846084]
[1772844845482,0.56247151,1983.3,1982.7,0.57846084]
[1772844856688,0.00631787,1983.3,1982.7,0.57846084]
[1772844864392,0.55106534,1983.5,1982.7,0.57846084]
[1772844865389,0.55625264,1983.5,1982.7,0.57846084]
[1772844883910,0.0051873,1983.5,1982.7,0.57846084]
[1772844886721,0.0051873,1983.5,1982.9,0.57736167]
[1772844892326,0.0051873,1983.5,1983.1,0.57736167]
[1772844892522,0.385191,1983.6,1983.1,0.57736167]
[1772844893429,0.39125176,1983.6,1983.1,0.57736167]
[1772844893630,0.00606076,1983.6,1983.1,0.57736167]
[1772844900734,0.4152597,1983.6,1983.1,0.57736167]
[1772844900934,0.40919894,1983.5,1983.1,0.57736167]
[1772844903740,0.4199541,1983.6,1983.1,0.57736167]
[1772844905139,0.41389334,1983.3,1982.7,0.56478959]
[1772844905338,0.41389334,1983.3,1982.7,41.36478959]
[1772844905637,0.41389334,1983.3,1982.8,0.56478959]
[1772844906738,1.94132796,1983.4,1982.8,0.56478959]
[1772844906941,2.35969199,1983.4,1982.8,0.56478959]
[1772844914142,0.39645691,1983.3,1982.8,0.56478959]
[1772844915239,0.39645691,1983.4,1982.9,0.56478959]
[1772844920148,0.39719103,1983.5,1982.9,0.56478959]
[1772844935164,0.40669934,1983.3,1982.8,0.56129131]
[1772844937365,0.56606157,1983.1,1982.5,0.56129131]
[1772844937662,8.761,1983.4,1982.3,0.56129131]
[1772844937663,0.56606157,1982.9,1982.3,0.56129131]
[1772844937858,0.56606157,1982.9,1982.5,0.56129131]
[1772844938162,0.56606157,1982.9,1982.3,0.56129131]
[1772844944466,0.56606157,1982.9,1982.4,41.36129131]
[1772844944662,0.56606157,1982.9,1982.5,0.56129131]
[1772844950475,9.33006157,1983.1,1982.5,0.56129131]
[1772844952078,0.56606157,1983.1,1982.5,0.56129131]
[1772844952274,0.56606157,1983.2,1982.5,0.56129131]
[1772844953578,0.56606157,1983.4,1982.7,0.56129131]
[1772844989911,9.47526488,1983.5,1982.7,0.56129131]
[1772844992512,0.54771259,1983.4,1982.7,0.56129131]
[1772844996622,0.55377335,1983.6,1982.7,0.56129131]
[1772844996821,6.17215956,1983.5,1982.7,0.56129131]
[1772844997021,0.55377335,1983.6,1982.7,0.56129131]
[1772844997219,6.71987215,1983.5,1982.7,0.56129131]
[1772844997424,0.54771259,1983.5,1982.7,0.56129131]
[1772845004027,0.54771259,1983.3,1982.7,0.56129131]
[1772845010131,0.54771259,1983.3,1982.6,0.56047277]
[1772845010430,0.00606076,1983.6,1982.4,41.05223]
[1772845010431,0.54771259,1983.1,1982.4,40.8]
[1772845010730,0.54771259,1983.1,1982.4,41.36047277]
[1772845013932,0.54771259,1983.1,1982.5,0.56047277]
[1772845036055,9.60671259,1983.1,1982.5,0.56047277]
[1772845037053,0.56289302,1983.0,1982.5,0.56047277]
[1772845066382,4.78784887,1983.4,1982.5,0.56047277]
[1772845066579,0.55119558,1983.2,1982.7,0.59960401]
[1772845066776,0.55119558,1983.0,1982.5,0.59960401]
[1772845072678,4.23627433,1983.4,1982.5,0.59960401]
[1772845072983,0.55119558,1983.4,1982.7,0.59960401]
[1772845073585,0.55119558,1983.2,1982.7,0.59960401]
[1772845076884,9.131,1983.3,1982.5,0.60240407]
[1772845076885,0.57685304,1983.0,1982.5,0.60240407]
[1772845077582,0.57685304,1983.0,1982.4,0.60240407]
[1772845078584,0.57685304,1983.0,1982.3,40.8]
[1772845078585,0.57685304,1982.8,1982.3,40.8]
[1772845078784,0.57685304,1982.7,1982.3,40.8]
[1772845078984,0.57685304,1982.7,1982.2,0.60240407]
[1772845079485,0.57685304,1982.7,1982.2,41.40240407]
[1772845079886,0.57685304,1982.6,1982.2,41.40240407]
[1772845080086,0.57685304,1982.6,1982.2,40.8]
[1772845081487,0.57685304,1982.6,1982.2,41.40240407]
[1772845082291,0.57685304,1982.6,1982.0,0.55966394]
[1772845083191,0.57685304,1982.6,1982.0,0.00458568]
[1772845086393,0.57685304,1982.6,1982.0,0.55966394]
[1772845086895,0.60279419,1982.5,1982.0,0.55966394]
[1772845115105,0.56595715,1982.7,1982.0,0.55966394]
[1772845140535,0.5952948,1983.1,1982.0,0.55966394]
[1772845140739,0.5952948,1982.9,1982.0,0.55966394]
[1772845142339,0.5952948,1982.9,1982.3,0.5528317]
[1772845142535,9.137,1983.1,1982.3,0.5528317]
[1772845142737,9.70179172,1983.1,1982.3,0.5528317]
[1772845142938,0.56479172,1983.0,1982.3,0.5528317]
[1772845144239,9.144,1983.3,1982.3,0.5528317]
[1772845144437,0.56479172,1983.1,1982.6,0.5528317]
[1772845148945,0.56479172,1983.1,1982.2,0.5528317]
[1772845180862,0.60162821,1982.9,1982.2,0.5528317]
[1772845181764,0.60162821,1982.7,1982.2,0.5528317]
[1772845181963,0.60162821,1982.5,1982.0,0.57281277]
[1772845185566,0.60162821,1982.5,1982.0,0.00458568]
[1772845186259,0.60162821,1982.5,1982.0,0.0007503]
[1772845186462,0.60162821,1982.5,1981.8,0.56822709]
[1772845186762,0.60162821,1982.3,1981.8,0.56822709]
[1772845187467,0.60162821,1982.3,1981.8,0.57233954]
[1772845189166,0.60162821,1982.3,1981.8,0.00411245]
[1772845189666,0.60162821,1982.1,1981.8,0.00411245]
[1772845189966,0.60726144,1982.1,1981.6,0.56822709]
[1772845190269,0.60726144,1982.1,1981.1,37.33993633]
[1772845190270,0.60726144,1982.1,1981.5,0.56822709]
[1772845190466,0.60162821,1981.9,1981.2,0.56822709]
[1772845190663,0.60162821,1981.9,1981.5,40.8]
[1772845190867,0.60162821,1981.9,1981.5,40.80471292]
[1772845191068,0.60162821,1981.9,1981.5,41.37294001]
[1772845192373,0.60162821,1981.9,1981.5,40.80471292]
[1772845192673,0.60162821,1981.9,1981.3,0.56822709]
[1772845193573,0.60162821,1981.9,1981.2,0.56822709]
[1772845193774,0.60162821,1981.9,1981.3,40.8]
[1772845195979,0.60162821,1981.9,1981.4,0.56822709]
[1772845196184,0.60162821,1981.9,1981.3,40.8]
[1772845196384,0.60162821,1981.9,1981.3,41.36822709]
[1772845197291,0.60162821,1981.9,1981.3,0.56822709]
[1772845197789,0.60162821,1981.9,1981.3,41.36822709]
[1772845199990,0.60162821,1981.9,1981.3,40.8]
[1772845200191,0.60162821,1981.9,1981.2,0.56759058]
[1772845200589,0.60162821,1981.9,1981.2,41.36759058]
[1772845201689,0.60162821,1981.9,1981.2,40.80645122]
[1772845202189,0.60162821,1981.9,1981.2,41.40180919]
[1772845202590,0.56708559,1981.7,1981.2,0.60180919]
[1772845205596,1.95112537,1982.1,1981.2,0.60180919]
[1772845205597,0.56708559,1982.0,1981.2,0.60180919]
[1772845215408,0.56708559,1981.9,1981.2,0.60180919]
[1772845224313,0.57271882,1982.1,1981.2,0.60180919]
[1772845225919,0.00563323,1982.1,1981.2,0.60180919]
[1772845227021,0.00563323,1982.1,1981.5,0.59535797]
[1772845237121,0.57033009,1982.4,1981.5,0.59535797]
[1772845237326,0.57033009,1982.6,1981.5,0.59535797]
[1772845237624,4.47336152,1982.7,1981.5,0.59535797]
[1772845237625,0.57033009,1982.4,1981.5,0.59535797]
[1772845238226,0.57511772,1982.4,1981.5,0.59535797]
[1772845239122,0.00478763,1982.4,1981.5,0.59535797]
[1772845239427,0.00478763,1982.4,1981.8,0.5764941]
[1772845244827,0.00478763,1982.4,1982.0,0.5764941]
[1772845250426,0.00478763,1982.4,1982.2,0.5764941]
[1772845251633,0.57033009,1982.6,1982.2,0.5764941]
[1772845252432,0.57601362,1982.6,1982.2,0.5764941]
[1772845254028,0.00568353,1982.6,1982.2,0.5764941]
[1772845254229,0.57033009,1982.8,1982.2,0.5764941]
[1772845255234,0.57389691,1982.8,1982.2,0.5764941]
[1772845261244,0.00356682,1982.8,1982.2,0.5764941]
[1772845262646,0.56562559,1982.8,1982.2,0.5764941]
[1772845266648,0.00356682,1982.8,1982.2,0.5764941]
[1772845267144,0.56205877,1983.1,1982.2,0.5764941]
[1772845267351,0.56205877,1983.1,1982.4,0.59224424]
[1772845268451,0.56746544,1983.1,1982.4,0.59224424]
[1772845272859,0.56746544,1983.1,1982.6,0.59224424]
[1772845273054,0.56746544,1983.1,1982.6,0.59775874]
[1772845279367,0.00540667,1983.1,1982.6,0.59775874]
[1772845279962,0.56205877,1983.5,1982.9,1.94296239]
[1772845280167,0.56205877,1983.3,1982.9,0.59224424]
[1772845280368,0.56205877,1983.3,1982.7,0.59224424]
[1772845281066,0.56769482,1983.3,1982.7,0.59224424]
[1772845284472,0.56769482,1983.3,1982.6,0.0055145]
[1772845284473,0.56205877,1983.1,1982.6,0.0055145]
[1772845284671,0.56205877,1983.1,1982.3,0.59224424]
[1772845284672,0.56205877,1982.9,1982.3,0.59224424]
[1772845285567,0.56205877,1982.7,1982.1,41.39224424]
[1772845285773,0.56205877,1982.7,1982.3,0.00461781]
[1772845296676,0.56205877,1982.7,1982.3,0.58430659]
[1772845296876,0.59384388,1982.9,1982.3,0.58430659]
[1772845297078,0.59384388,1983.0,1982.4,0.57968878]
[1772845302084,0.59384388,1983.2,1982.6,0.57968878]
[1772845302283,0.59947993,1983.3,1982.6,0.57968878]
[1772845308981,0.00563605,1983.3,1983.0,0.57968878]
[1772845309284,0.59384388,1983.4,1983.0,0.57968878]
[1772845310091,0.59941042,1983.4,1983.0,0.57968878]
[1772845340610,0.57382925,1983.8,1983.0,0.57968878]
[1772845340816,20.96916204,1984.5,1983.3,0.55928556]
[1772845340817,0.57382925,1984.0,1983.3,0.55928556]
[1772845341312,0.57382925,1984.0,1983.5,0.55928556]
[1772845341715,0.57930467,1984.0,1983.5,0.55928556]
[1772845348016,0.57930467,1984.0,1983.4,40.8]
[1772845348218,0.57930467,1984.0,1982.9,0.55928556]
[1772845348419,0.57382925,1983.8,1982.9,0.55928556]
[1772845348620,0.57382925,1983.8,1983.0,40.8]
[1772845348818,0.57382925,1983.8,1983.0,41.35928556]
[1772845349721,0.57382925,1983.8,1983.1,0.55928556]
[1772845351417,0.57382925,1983.8,1983.0,40.8]
[1772845352021,0.57382925,1983.8,1983.0,41.39249116]
[1772845353726,0.57382925,1983.8,1983.1,0.59249116]
[1772845363331,0.56555904,1983.9,1983.1,0.59249116]
[1772845373128,0.57103446,1984.0,1983.3,0.59249116]
[1772845375836,0.57103446,1984.0,1983.1,0.59249116]
[1772845386546,0.56056665,1983.9,1983.1,0.59249116]
[1772845398553,0.56056665,1983.5,1983.0,41.39025086]
[1772845402455,0.56056665,1983.5,1982.8,0.59025086]
[1772845402855,0.56056665,1983.5,1982.8,41.39025086]
[1772845403055,0.56056665,1983.5,1982.9,0.59025086]
[1772845404155,0.56056665,1983.4,1982.9,0.59025086]
[1772845406958,0.56056665,1983.4,1982.8,41.39025086]
[1772845408953,0.56056665,1983.4,1982.8,40.8]
[1772845409156,0.56056665,1983.1,1982.6,0.59025086]
[1772845409453,0.56056665,1983.1,1982.4,0.59025086]
[1772845409653,0.56056665,1983.1,1982.3,29.17561781]
[1772845409654,0.56056665,1983.1,1982.5,41.39025086]
[1772845410862,0.56056665,1983.1,1982.6,0.59025086]
[1772845413858,0.57736702,1983.2,1982.7,0.57150502]
[1772845414261,0.57736702,1983.3,1982.7,0.57150502]
[1772845421370,0.57736702,1983.5,1982.9,0.57150502]
[1772845422273,9.27536702,1983.5,1982.9,0.57150502]
[1772845423275,0.57736702,1983.5,1982.9,0.57150502]
[1772845423469,0.57736702,1983.6,1982.9,0.57150502]
[1772845434687,0.57736702,1983.5,1983.1,0.57150502]
[1772845439991,0.58039895,1983.7,1983.1,0.57150502]
[1772845440187,0.58039895,1983.6,1983.1,0.57150502]
[1772845446591,9.35239895,1983.6,1983.1,0.57150502]
[1772845447295,0.5438949,1983.5,1983.1,0.57150502]
[1772845448897,0.5438949,1983.5,1982.7,0.58576081]
[1772845457899,4.48835068,1984.0,1982.7,0.58576081]
[1772845458103,0.5438949,1983.8,1982.7,0.58576081]
[1772845458303,0.5438949,1983.6,1982.7,0.58576081]
[1772845467809,0.5438949,1983.6,1982.8,0.58576081]
[1772845474716,0.5438949,1983.6,1983.0,0.59881441]
[1772845480820,0.5438949,1983.6,1982.8,10.56755633]
[1772845481117,0.5438949,1983.6,1982.9,0.59881441]
[1772845485321,0.5438949,1983.6,1982.7,0.59881441]
[1772845488119,0.5438949,1983.6,1982.6,43.11809497]
[1772845488521,0.5438949,1983.6,1982.7,0.59881441]
[1772845510433,2.48577428,1983.6,1982.7,0.59881441]
[1772845510638,0.56426605,1983.5,1982.7,0.59881441]
[1772845511638,0.56426605,1983.3,1982.6,13.97812084]
[1772845514741,0.56426605,1983.3,1982.7,0.56484028]
[1772845523052,0.56426605,1983.1,1982.7,0.56484028]
[1772845523250,0.56426605,1983.1,1982.6,0.56484028]
[1772845526658,0.56426605,1982.9,1982.4,0.56484028]
[1772845527153,0.56426605,1982.9,1982.5,0.56484028]
[1772845527851,0.56426605,1982.9,1982.4,40.8]
[1772845528052,0.56426605,1982.7,1982.4,40.8]
[1772845528458,0.56426605,1982.7,1982.3,0.56945809]
[1772845528958,0.56426605,1982.7,1982.3,41.36945809]
[1772845529654,0.56426605,1982.7,1982.3,40.80461781]
[1772845529854,0.56426605,1982.7,1982.3,0.00461781]
[1772845530052,0.56426605,1982.7,1982.1,0.56484028]
[1772845530254,0.56426605,1982.7,1982.2,40.8]
[1772845530454,0.56426605,1982.7,1982.2,41.36484028]
[1772845530955,0.56426605,1982.7,1982.2,41.36902304]
[1772845532157,0.56426605,1982.7,1982.2,40.80418276]
[1772845532462,0.55656714,1982.5,1981.9,1.90736162]
[1772845532761,0.55656714,1982.3,1981.6,0.57542965]
[1772845533460,0.55656714,1982.3,1981.7,40.8]
[1772845533658,0.5628879,1982.3,1981.8,0.57542965]
[1772845534459,0.5628879,1982.3,1981.7,40.8]
[1772845534655,0.5628879,1982.3,1981.8,0.57542965]
[1772845537366,0.00632076,1982.3,1981.8,0.57542965]
[1772845537666,0.5628879,1982.3,1981.8,0.57542965]
[1772845541668,0.55656714,1982.8,1982.2,0.57542965]
[1772845542673,0.56084094,1982.8,1982.2,0.57542965]
[1772845543968,0.0042738,1982.8,1982.2,0.57542965]
[1772845544168,0.0042738,1982.8,1982.4,0.57542965]
[1772845545973,0.55656714,1983.0,1982.4,0.57542965]
[1772845546874,0.56085493,1983.0,1982.4,0.57542965]
[1772845558378,0.56085493,1983.0,1982.1,1.94187938]
[1772845558379,1.94187938,1982.9,1982.2,0.57330104]
[1772845558577,0.57745106,1982.8,1982.2,0.57330104]
[1772845560481,0.57745106,1982.6,1981.9,0.57330104]
[1772845565783,0.57410481,1982.4,1981.9,0.57330104]
[1772845573389,0.57410481,1982.4,1981.8,4.1376]
[1772845574187,0.57410481,1982.3,1981.8,4.1376]
[1772845575287,0.57410481,1982.1,1981.8,2.52615285]
[1772845575488,0.57410481,1982.1,1981.8,1.79436189]
[1772845579096,0.57410481,1982.1,1981.6,0.60957751]
[1772845580990,2.51794774,1982.1,1981.3,0.5539077]
[1772845581196,0.57410481,1982.0,1981.3,0.5539077]
[1772845582094,0.57410481,1982.0,1981.3,0.55773562]
[1772845583189,9.09110481,1982.0,1981.3,0.55773562]
[1772845592096,0.59918532,1981.9,1981.3,0.55773562]
[1772845659369,0.54886747,1982.1,1981.4,0.57240428]
[1772845659562,6.17961071,1982.0,1981.4,0.57240428]
[1772845659760,0.54886747,1982.1,1981.4,0.57240428]
[1772845659966,6.17961071,1982.0,1981.4,0.57240428]
[1772845660261,0.54886747,1982.1,1981.4,0.57240428]
[1772845660466,6.17889271,1982.0,1981.4,0.57240428]
[1772845660668,0.54886747,1982.1,1981.4,0.57240428]
[1772845660872,6.17889271,1982.0,1981.4,0.57240428]
[1772845661170,0.54886747,1982.1,1981.4,0.57240428]
[1772845661370,6.17852233,1982.0,1981.4,0.57240428]
[1772845661573,0.54886747,1982.1,1981.4,0.57240428]
[1772845661872,6.17852233,1982.0,1981.4,0.57240428]
[1772845662073,0.54886747,1982.1,1981.4,0.57240428]
[1772845662271,6.17852233,1982.0,1981.4,0.57240428]
[1772845662472,0.54886747,1982.1,1981.4,0.57240428]
[1772845662672,6.72711465,1982.0,1981.4,0.57240428]
[1772845662867,0.54886747,1982.0,1981.4,0.57240428]
[1772845671789,0.54886747,1982.2,1981.4,0.57240428]
[1772845671980,6.67129375,1982.1,1981.4,0.57240428]
[1772845672275,6.17730203,1982.0,1981.4,0.57240428]
[1772845672478,0.54886747,1982.1,1981.4,0.57240428]
[1772845672776,6.17726645,1982.0,1981.4,0.57240428]
[1772845672975,0.54886747,1982.1,1981.4,0.57240428]
[1772845673180,6.17726645,1982.0,1981.4,0.57240428]
[1772845673384,0.54886747,1982.1,1981.4,0.57240428]
[1772845673585,6.177248,1982.0,1981.4,0.57240428]
[1772845673783,0.54886747,1982.1,1981.4,0.57240428]
[1772845673985,6.177248,1982.0,1981.4,0.57240428]
[1772845674185,0.54886747,1982.1,1981.4,0.57240428]
[1772845674385,6.17724461,1982.0,1981.4,0.57240428]
[1772845674589,0.54886747,1982.1,1981.4,0.57240428]
[1772845674886,0.54886747,1981.9,1981.3,0.5762322]
[1772845685091,0.55368598,1982.1,1981.3,0.5762322]
[1772845685294,0.55368598,1982.2,1981.7,0.58721982]
[1772845685693,4.79272482,1982.5,1981.7,0.58721982]
[1772845685989,9.22168598,1982.5,1981.9,0.58721982]
[1772845686488,0.55368598,1982.4,1981.9,0.58721982]
[1772845688691,0.55368598,1982.5,1981.9,0.58721982]
[1772845712309,9.32768598,1982.5,1981.9,0.58721982]
[1772845714415,0.55368598,1982.5,1981.9,0.58721982]
[1772845714616,9.38703033,1982.6,1981.9,0.58721982]
[1772845719314,9.41003033,1982.6,1981.9,0.58721982]
[1772845723622,9.41003033,1982.6,1982.1,0.60103885]
[1772845725227,0.02600302,1982.9,1982.1,0.60103885]
[1772845725428,8.85700302,1982.9,1982.1,0.60103885]
[1772845725726,0.02597565,1982.8,1982.1,0.60103885]
[1772845729128,0.02597565,1982.8,1982.3,0.60103885]
[1772845734831,0.00428779,1983.0,1982.3,0.60103885]
[1772845736233,0.00428779,1983.0,1982.5,0.60103885]
[1772845739231,0.03341771,1983.0,1982.5,0.60103885]
[1772845741027,0.00428779,1983.0,1982.5,0.60103885]
[1772845741939,8.86,1983.3,1982.5,0.60103885]
[1772845742237,8.88745137,1983.3,1982.5,0.60103885]
[1772845742637,0.02745137,1983.3,1982.5,0.60103885]
[1772845742838,0.03262972,1983.3,1982.5,0.60103885]
[1772845744139,0.00517835,1983.3,1982.5,0.60103885]
[1772845744638,0.03126108,1983.3,1982.5,0.60103885]
[1772845753946,0.04005697,1983.1,1982.5,0.60103885]
[1772845755342,0.04005697,1983.0,1982.5,0.60103885]
[1772845757247,10.8009193,1983.1,1982.5,0.60103885]
[1772845757443,10.83314045,1983.1,1982.5,0.60103885]
[1772845760541,10.83414045,1983.1,1982.5,0.60103885]
[1772845761049,0.02801839,1983.0,1982.5,0.60103885]
[1772845779170,10.83017981,1983.1,1982.5,0.60103885]
[1772845779372,6.20123671,1983.0,1982.5,0.60103885]
[1772845779669,10.83017981,1983.1,1982.5,0.60103885]
[1772845779872,6.20123671,1983.0,1982.5,0.60103885]
[1772845780073,10.83017981,1983.1,1982.5,0.60103885]
[1772845780273,6.20123671,1983.0,1982.5,0.60103885]
[1772845780475,10.83017981,1983.1,1982.5,0.60103885]
[1772845780674,6.20149897,1983.0,1982.5,0.60103885]
[1772845780874,10.83017981,1983.1,1982.5,0.60103885]
[1772845781074,6.20149897,1983.0,1982.5,0.60103885]
[1772845781274,10.83017981,1983.1,1982.5,0.60103885]
[1772845781468,6.2018354,1983.0,1982.5,0.60103885]
[1772845781675,10.83017981,1983.1,1982.5,0.60103885]
[1772845781877,6.2018354,1983.0,1982.5,0.60103885]
[1772845782072,10.83017981,1983.1,1982.5,0.60103885]
[1772845782275,6.2018354,1983.0,1982.5,0.60103885]
[1772845782477,10.83017981,1983.1,1982.5,0.60103885]
[1772845782777,6.20225338,1983.0,1982.5,0.60103885]
[1772845783075,10.83017981,1983.1,1982.5,0.60103885]
[1772845783270,6.20225338,1983.0,1982.5,0.60103885]
[1772845783471,10.83017981,1983.1,1982.5,0.60103885]
[1772845783678,6.2027939,1983.0,1982.5,0.60103885]
[1772845783879,10.83017981,1983.1,1982.5,0.60103885]
[1772845784176,6.2027939,1983.0,1982.5,0.60103885]
[1772845784380,10.83017981,1983.1,1982.5,0.60103885]
[1772845784577,6.20297575,1983.0,1982.5,0.60103885]
[1772845784777,10.83017981,1983.1,1982.5,0.60103885]
[1772845784976,6.20297575,1983.0,1982.5,0.60103885]
[1772845785176,8.88726051,1983.1,1982.5,0.60103885]
[1772845785377,6.23284072,1983.0,1982.5,0.60103885]
[1772845785577,0.02986414,1983.0,1982.5,0.60103885]
[1772845790390,8.859,1983.1,1982.5,0.60103885]
[1772845790594,6.20359355,1983.0,1982.5,0.60103885]
[1772845790885,8.87131442,1983.1,1982.5,0.60103885]
[1772845791090,6.20359355,1983.0,1982.5,0.60103885]
[1772845791288,8.87131442,1983.1,1982.5,0.60103885]
[1772845791490,6.69775624,1983.0,1982.5,0.60103885]
[1772845791689,8.87131442,1983.1,1982.5,0.60103885]
[1772845791892,6.69791149,1983.0,1982.5,0.60103885]
[1772845792091,8.87131442,1983.1,1982.5,0.60103885]
[1772845792292,6.69791525,1983.0,1982.5,0.60103885]
[1772845792493,8.87131442,1983.1,1982.5,0.60103885]
[1772845792789,4.59660579,1983.0,1982.5,0.60103885]
[1772845792994,0.00517835,1983.3,1982.8,0.59825343]
[1772845793195,0.00517835,1983.3,1982.8,0.60196642]
[1772845796493,0.57315237,1983.9,1983.2,0.59825343]
[1772845796692,6.17213208,1984.1,1983.2,0.59825343]
[1772845796693,9.56215237,1983.8,1983.2,0.59825343]
[1772845797293,9.56839775,1983.8,1983.2,0.59825343]
[1772845799300,0.56242359,1983.7,1983.2,0.59825343]
[1772845804399,0.57949809,1983.8,1983.4,0.58104968]
[1772845804604,9.025,1983.7,1983.4,0.58104968]
[1772845805200,0.00624538,1983.8,1983.4,0.58104968]
[1772845805506,9.03524538,1983.8,1983.6,0.58104968]
[1772845806703,9.60925271,1984.1,1983.6,0.58104968]
[1772845807007,29.14204146,1984.2,1983.6,0.58104968]
[1772845807709,9.61524364,1984.2,1983.6,0.58104968]
[1772845808104,0.57325271,1984.1,1983.6,0.58104968]
[1772845808713,9.61524364,1984.2,1983.6,0.58104968]
[1772845809606,0.57325271,1984.1,1983.6,0.58104968]
[1772845810303,0.57325271,1984.1,1983.7,0.58104968]
[1772845810809,0.57325271,1984.1,1983.6,41.38104968]
[1772845811714,0.57325271,1984.1,1983.7,0.58104968]
[1772845812707,0.57325271,1984.1,1983.5,0.58104968]
[1772845814715,0.57325271,1983.9,1983.4,0.58104968]
[1772845818017,9.089,1984.0,1983.4,0.58104968]
[1772845818215,9.66225271,1984.0,1983.4,0.58104968]
[1772845818714,0.57325271,1983.9,1983.4,0.58104968]
[1772845821122,0.57325271,1984.1,1983.4,0.58104968]
[1772845821314,9.095,1984.0,1983.4,0.58104968]
[1772845821622,9.66825271,1984.0,1983.4,0.58104968]
[1772845824026,0.57325271,1983.9,1983.4,0.58104968]
[1772845828725,0.57325271,1983.9,1983.3,0.58104968]
[1772845830129,9.68125271,1983.9,1983.3,0.58104968]
[1772845832536,0.59013317,1983.8,1983.3,0.58104968]
[1772845860754,0.00499093,1984.2,1983.0,0.5561432]
[1772845860755,0.5942321,1983.6,1983.0,0.5561432]
[1772845861255,0.5942321,1983.6,1983.1,40.8]
[1772845861848,0.5942321,1983.6,1983.0,0.5561432]
[1772845862350,0.5942321,1983.6,1983.0,41.3561432]
[1772845868551,0.5942321,1983.6,1983.1,0.59284873]
[1772845878660,0.55305663,1984.0,1983.5,0.59284873]
[1772845879058,2.49484571,1984.0,1983.4,0.59284873]
[1772845879264,0.55305663,1983.9,1983.4,0.59284873]
[1772845879463,0.55305663,1983.9,1983.1,0.59284873]
[1772845883565,0.55305663,1983.7,1983.0,41.39284873]
[1772845883861,0.55305663,1983.7,1983.1,0.59284873]
[1772845884659,0.55305663,1983.6,1983.1,0.59284873]
[1772845887463,0.55305663,1983.3,1982.8,0.59656172]
[1772845887663,0.55305663,1983.3,1982.8,0.00371299]
[1772845887863,0.55305663,1983.3,1982.7,0.59284873]
[1772845887864,0.55305663,1983.3,1982.6,0.59284873]